lending/lending_fUSD_20251124
["ID","MTS","AMOUNT","RATE_DAILY","PERIOD"]
[394858588,1764024648992,-514.3,0.00027397,2]
[394858589,1764024649001,-692.52,0.00027397,2]
[394858590,1764024649010,-500.0,0.00027397,5]
[394858591,1764024649018,-300.0,0.00027397,2]
[394858592,1764024649028,-151.0,0.00027397,7]
[394858593,1764024649037,-151.0,0.00027397,7]
[394858594,1764024649046,-286.502955,0.00027397,7]
[394858595,1764024649055,-158.63110962,0.00027397,5]
[394858596,1764024649064,-301.01,0.000274,7]
[394858597,1764024649073,-1075.01,0.000274,7]
[394858598,1764024649082,-1571.35,0.000274,2]
[394858599,1764024649092,-151.0,0.000274,7]
[394858600,1764024649102,-199.347392,0.000274,7]
[394858601,1764024649111,-5082.93,0.000274,2]
[394858602,1764024649120,-5082.93,0.000274,2]
[394858603,1764024649129,-5082.93,0.000274,2]
[394858604,1764024649138,-5082.93,0.000274,2]
[394858605,1764024649147,-5082.93,0.000274,2]
[394858606,1764024649158,-1000.0,0.000275,2]
[394858607,1764024649170,-151.0,0.00027671,7]
[394858608,1764024649179,-151.378803,0.00027671,7]
[394858609,1764024649189,-151.378803,0.00027671,7]
[394858610,1764024649198,-151.378803,0.00027671,7]
[394858611,1764024649207,-151.378798,0.00027671,7]
[394858612,1764024649218,-4899.1,0.00027671,2]
[394858613,1764024649227,-181.8,0.00027787,7]
[394858614,1764024649236,-6041.56,0.000278,7]
[394858615,1764024649245,-151.0,0.00028082,7]
[394858617,1764024649255,-151.0,0.00028082,7]
[394858618,1764024649264,-440.243655,0.00028082,7]
[394858619,1764024649277,-440.243655,0.00028082,7]
[394858620,1764024649287,-440.243655,0.00028082,7]
[394858621,1764024649298,-440.243655,0.00028082,7]
[394858622,1764024649307,-417.48,0.00028082,2]
[394858623,1764024649317,-355.16,0.00028082,2]
[394858624,1764024649329,-302.55,0.00028082,2]
[394858625,1764024649338,-177.64,0.00028127,2]
[394858626,1764024649347,-417.48,0.00028127,2]
[394858627,1764024649357,-177.64,0.00028127,2]
[394858628,1764024649366,-177.64,0.00028127,2]
[394858629,1764024649375,-417.48,0.00028127,2]
[394858630,1764024649384,-177.64,0.00028127,2]
[394858631,1764024649394,-417.48,0.00028127,2]
[394858632,1764024649402,-1000.0,0.000283,2]
[394858633,1764024649411,-157.02439288,0.00028535,7]
[394858634,1764024649420,-3162.0,0.00028835,2]
[394858635,1764024649429,-203.94766494,0.00029023,2]
[394858636,1764024649438,-166.9902574,0.00029026,2]
[394858637,1764024649447,-1075.01,0.000291,7]
[394858638,1764024649456,-1000.0,0.000291,2]
[394858639,1764024649466,-1571.35,0.000292,2]
[394858640,1764024649476,-2000.0,0.000295,2]
[394858641,1764024649486,-185.70966611,0.00029729,110]
[394858642,1764024649495,-186.07333404,0.00029819,2]
[394858643,1764024649505,-1050.8,0.0003,7]
[394858644,1764024649514,-173.0,0.0003,14]
[394858645,1764024649523,-167.0,0.0003,14]
[394858646,1764024649533,-538.18070999,0.0003013,30]
[394858647,1764024649542,-692.52,0.00030137,2]
[394858648,1764024649551,-285.365221,0.00030164,15]
[394858649,1764024649560,-285.365221,0.00030164,15]
[394858650,1764024649569,-285.365221,0.00030164,15]
[394858651,1764024649579,-285.365212,0.00030164,15]
[394858652,1764024649589,-176.847926,0.00030164,31]
[394858653,1764024649598,-151.0,0.00030164,31]
[394858654,1764024649607,-489.826,0.00030164,2]
[394858655,1764024649617,-609.0,0.00030164,2]
[394858656,1764024649626,-1471.851,0.00030164,2]
[394858657,1764024649636,-822.0,0.00030164,2]
[394858658,1764024649645,-1601.0,0.00030164,2]
[394858659,1764024649659,-659.0,0.00030164,2]
[394858660,1764024649668,-1256.0,0.00030164,2]
[394858661,1764024649677,-2715.0,0.00030164,2]
[394858662,1764024649687,-6499.0,0.00030164,2]
[394858663,1764024649698,-301.01,0.000302,30]
[394858664,1764024649707,-1075.01,0.000306,7]
[394858665,1764024649717,-181.8,0.0003068,30]
[394858666,1764024649728,-1571.35,0.000307,2]
[394858667,1764024649737,-1000.0,0.000307,2]
[394858668,1764024649747,-500.1017597,0.00030917,2]
[394858669,1764024649756,-1000.0,0.000315,2]
[394858670,1764024649765,-3689.0,0.00031546,2]
[394858671,1764024649775,-173.0,0.00031644,14]
[394858672,1764024649784,-150.0,0.0003203,4]
[394858673,1764024649793,-160.91033055,0.0003203,7]
[394858674,1764024649803,-150.0,0.0003203,4]
[394858675,1764024649813,-150.0,0.0003203,4]
[394858676,1764024649822,-150.0,0.0003203,4]
[394858677,1764024649831,-150.0,0.0003203,4]
[394858678,1764024649840,-150.0,0.0003203,4]
[394858679,1764024649849,-150.0,0.0003203,4]
[394858680,1764024649859,-150.0,0.0003203,4]
[394858681,1764024649868,-150.0,0.0003203,4]
[394858682,1764024649877,-150.0,0.0003203,4]
[394858683,1764024649886,-150.0,0.0003203,4]
[394858684,1764024649895,-150.00000001,0.0003203,4]
[394858685,1764024649904,-160.91033055,0.00032066,7]
[394858686,1764024649913,-1075.01,0.000321,7]
[394858687,1764024649922,-157.02439288,0.00032102,7]
[394858688,1764024649931,-160.91033055,0.00032102,7]
[394858689,1764024649939,-160.91033055,0.00032138,7]
[394858690,1764024649949,-160.91033055,0.00032174,7]
[394858691,1764024649958,-160.91033055,0.0003221,7]
[394858692,1764024649969,-160.91033055,0.00032246,7]
[394858693,1764024649978,-160.91033055,0.00032282,7]
[394858694,1764024649987,-1000.0,0.000323,2]
[394858695,1764024649996,-160.91033055,0.00032318,7]
[394858696,1764024650006,-160.91033055,0.00032354,7]
[394858697,1764024650016,-160.91033055,0.0003239,7]
[394858698,1764024650025,-160.91033055,0.00032426,7]
[394858699,1764024650034,-160.91033055,0.00032462,7]
[394858700,1764024650044,-160.91033055,0.00032497,7]
[394858701,1764024650053,-301.01,0.000325,30]
[394858702,1764024650063,-6041.56,0.000325,7]
[394858703,1764024650071,-160.91033055,0.00032533,7]
[394858704,1764024650080,-150.0,0.00032539,7]
[394858705,1764024650089,-160.91033055,0.00032569,7]
[394858706,1764024650098,-160.91033055,0.00032605,7]
[394858707,1764024650107,-160.91033055,0.00032641,7]
[394858708,1764024650115,-160.91033055,0.00032677,7]
[394858709,1764024650124,-160.91033055,0.00032713,7]
[394858710,1764024650133,-150.0,0.00032742,7]
[394858711,1764024650142,-160.91033055,0.00032749,7]
[394858712,1764024650150,-160.91033055,0.00032785,7]
[394858713,1764024650159,-160.91033055,0.00032821,7]
[394858714,1764024650168,-160.91033055,0.00032857,7]
[394858715,1764024650177,-692.52,0.00032877,2]
[394858716,1764024650186,-500.0,0.00032877,7]
[394858717,1764024650194,-500.0,0.00032877,7]
[394858718,1764024650203,-500.0,0.00032877,7]
[394858719,1764024650213,-500.0,0.00032877,7]
[394858720,1764024650221,-500.0,0.00032877,7]
[394858721,1764024650230,-500.0,0.00032877,7]
[394858722,1764024650239,-526.03535319,0.00032877,7]
[394858723,1764024650247,-150.0,0.00032877,2]
[394858724,1764024650256,-160.91033055,0.00032893,7]
[394858725,1764024650383,-150.0,0.0003292,7]
[394858727,1764024650392,-150.0,0.0003292,7]
[394858728,1764024650403,-160.91033055,0.00032929,7]
[394858729,1764024650412,-160.91033055,0.00032965,7]
[394858730,1764024650421,-150.0,0.00032986,2]
[394858731,1764024650430,-551.04,0.00032986,2]
[394858732,1764024650439,-230.87,0.00032986,2]
[394858733,1764024650449,-150.0,0.00032986,2]
[394858734,1764024650458,-150.0,0.00032986,2]
[394858735,1764024650468,-150.0,0.00032986,2]
[394858736,1764024650477,-150.0,0.00032986,2]
[394858737,1764024650486,-1571.35,0.00033,2]
[394858738,1764024650496,-152.41800308,0.00033,2]
[394858739,1764024650505,-160.91033055,0.00033001,7]
[394858740,1764024650514,-150.0,0.00033014,2]
[394858741,1764024650524,-160.91033055,0.00033037,7]
[394858742,1764024650534,-150.0,0.00033047,7]
[394858743,1764024650544,-160.91033055,0.00033073,7]
[394858744,1764024650553,-500.0,0.00033087,120]
[394858745,1764024650562,-1000.0,0.000331,7]
[394858746,1764024650572,-160.91033055,0.00033109,7]
[394858747,1764024650581,-160.91033055,0.00033145,7]
[394858748,1764024650590,-150.0,0.00033151,2]
[394858749,1764024650599,-609.0,0.00033164,2]
[394858750,1764024650609,-822.0,0.00033164,2]
[394858751,1764024650618,-1601.0,0.00033164,2]
[394858752,1764024650628,-659.0,0.00033164,2]
[394858753,1764024650637,-1256.0,0.00033164,2]
[394858754,1764024650650,-2715.0,0.00033164,2]
[394858755,1764024650659,-3119.107,0.00033164,2]
[394858756,1764024650668,-501.93,0.00033165,2]
[394858757,1764024650678,-160.91033055,0.0003318,7]
[394858758,1764024650689,-2000.0,0.000332,2]
[394858759,1764024650699,-160.91033055,0.00033216,7]
[394858760,1764024650708,-150.0,0.00033216,7]
[394858761,1764024650719,-150.0,0.00033216,7]
[394858762,1764024650731,-150.0,0.00033216,7]
[394858763,1764024650740,-160.91033055,0.00033252,7]
[394858764,1764024650750,-150.0,0.00033288,2]
[394858765,1764024650760,-160.91033055,0.00033288,7]
[394858766,1764024650769,-160.91033055,0.00033324,7]
[394858767,1764024650778,-160.91033055,0.0003336,7]
[394858768,1764024650788,-160.91033055,0.00033396,7]
[394858769,1764024650797,-150.0,0.00033425,2]
[394858770,1764024650807,-160.91033055,0.00033432,7]
[394858771,1764024650816,-150.0,0.00033454,7]
[394858772,1764024650825,-160.91033055,0.00033468,7]
[394858773,1764024650834,-160.91033055,0.00033504,7]
[394858774,1764024650843,-160.91033055,0.0003354,7]
[394858775,1764024650853,-150.0,0.00033555,7]
[394858776,1764024650863,-200.35818123,0.00033562,2]
[394858777,1764024650872,-181.8,0.00033574,30]
[394858778,1764024650881,-160.91033055,0.00033576,7]
[394858779,1764024650890,-160.91033055,0.00033612,7]
[394858780,1764024650899,-160.91033055,0.00033648,7]
[394858781,1764024650908,-160.91033055,0.00033684,7]
[394858782,1764024650917,-160.91033055,0.0003372,7]
[394858783,1764024650927,-160.91033055,0.00033756,7]
[394858784,1764024650937,-160.91033055,0.00033792,7]
[394858785,1764024650946,-150.0,0.0003381,7]
[394858786,1764024650956,-150.0,0.0003381,7]
[394858787,1764024650966,-150.0,0.0003381,7]
[394858788,1764024650975,-160.91033055,0.00033828,7]
[394858789,1764024650984,-160.91033055,0.00033864,7]
[394858790,1764024650993,-160.91033055,0.00033899,7]
[394858791,1764024651003,-160.91033055,0.00033935,7]
[394858792,1764024651012,-160.91033055,0.00033971,7]
[394858793,1764024651022,-160.91033055,0.00034007,7]
[394858794,1764024651031,-160.91033055,0.00034043,7]
[394858795,1764024651040,-150.0,0.00034064,7]
[394858796,1764024651049,-160.91033055,0.00034079,7]
[394858797,1764024651058,-160.91033055,0.00034115,7]
[394858798,1764024651068,-160.91033055,0.00034151,7]
[394858799,1764024651078,-150.0,0.00034165,7]
[394858800,1764024651087,-160.91033055,0.00034187,7]
[394858801,1764024651097,-160.91033055,0.00034223,7]
[394858802,1764024651107,-160.91033055,0.00034259,7]
[394858803,1764024651116,-160.91033055,0.00034295,7]
[394858804,1764024651127,-160.91033055,0.00034331,7]
[394858805,1764024651138,-160.91033055,0.00034367,7]
[394858806,1764024651148,-160.91033055,0.00034403,7]
[394858807,1764024651157,-150.0,0.00034403,7]
[394858808,1764024651166,-150.0,0.00034403,7]
[394858809,1764024651175,-150.0,0.00034403,7]
[394858810,1764024651185,-300.0,0.00034411,3]
[394858811,1764024651193,-160.91033055,0.00034439,7]
[394858812,1764024651202,-160.91033055,0.00034475,7]
[394858813,1764024651213,-160.91033055,0.00034511,7]
[394858814,1764024651222,-500.0,0.0003452,120]
[394858815,1764024651231,-160.91033055,0.00034547,7]
[394858816,1764024651241,-1601.72172903,0.00034548,2]
[394858817,1764024651250,-150.0,0.00034572,7]
[394858818,1764024651259,-160.91033055,0.00034582,7]
[394858819,1764024651268,-160.91033055,0.00034618,7]
[394858820,1764024651278,-160.91033055,0.00034654,7]
[394858821,1764024651287,-160.91033055,0.0003469,7]
[394858822,1764024651296,-150.0,0.00034699,7]
[394858823,1764024651305,-150.0,0.00034699,7]
[394858824,1764024651314,-160.91033055,0.00034726,7]
[394858825,1764024651323,-160.91033055,0.00034762,7]
[394858826,1764024651332,-160.91033055,0.00034798,7]
[394858827,1764024651341,-160.91033055,0.00034834,7]
[394858828,1764024651350,-160.91033055,0.0003487,7]
[394858829,1764024651359,-150.0,0.00034877,7]
[394858830,1764024651368,-160.91033055,0.00034906,7]
[394858831,1764024651377,-160.91033055,0.00034942,7]
[394858832,1764024651387,-160.91033055,0.00034978,7]
[394858833,1764024651396,-2006.48906137,0.00034999,3]
[394858834,1764024651405,-6633.31480712,0.00035,2]
[394858835,1764024651414,-1000.0,0.00035,12]
[394858836,1764024651423,-1002.19648362,0.00035,3]
[394858837,1764024651432,-1670.3934844,0.00035,13]
[394858838,1764024651442,-160.91033055,0.00035014,7]
[394858839,1764024651451,-160.91033055,0.0003505,7]
[394858840,1764024651461,-150.0,0.00035081,7]
[394858841,1764024651470,-160.91033055,0.00035086,7]
[394858842,1764024651480,-160.91033055,0.00035122,7]
[394858843,1764024651489,-160.91033055,0.00035158,7]
[394858844,1764024651499,-160.91033055,0.00035194,7]
[394858845,1764024651508,-160.91033055,0.0003523,7]
[394858846,1764024651518,-160.91033055,0.00035266,7]
[394858847,1764024651528,-160.91033055,0.00035301,7]
[394858848,1764024651537,-160.91033055,0.00035337,7]
[394858849,1764024651547,-160.91033055,0.00035373,7]
[394858850,1764024651557,-160.91033055,0.00035409,7]
[394858851,1764024651566,-160.91033055,0.00035445,7]
[394858852,1764024651576,-160.91033055,0.00035481,7]
[394858853,1764024651585,-260.0,0.00035507,2]
[394858854,1764024651595,-160.91033055,0.00035517,7]
[394858855,1764024651604,-152.0,0.00035529,3]
[394858856,1764024651614,-160.91033055,0.00035553,7]
[394858857,1764024651624,-150.0,0.00035589,7]
[394858858,1764024651633,-160.91033055,0.00035589,7]
[394858859,1764024651642,-185.40290565,0.00035589,7]
[394858860,1764024651656,-150.00000055,0.00035589,7]
[394858861,1764024651666,-150.00000001,0.00035589,7]
[394858862,1764024651675,-150.0,0.00035589,7]
[394858863,1764024651685,-227.50546259,0.00035589,7]
[394858864,1764024651697,-150.00000069,0.00035589,7]
[394858865,1764024651706,-150.0,0.00035589,7]
[394858866,1764024651716,-150.0,0.00035589,7]
[394858867,1764024651727,-500.0,0.00035616,2]
[394858868,1764024651737,-500.0,0.00035616,8]
[394858869,1764024651746,-500.0,0.00035616,8]
[394858870,1764024651755,-500.9839683,0.00035616,8]
[394858871,1764024651764,-500.0,0.00035616,8]
[394858872,1764024651774,-500.0,0.00035616,8]
[394858873,1764024651783,-500.0,0.00035616,8]
[394858874,1764024651792,-500.0,0.00035616,8]
[394858875,1764024651802,-230.23789082,0.00035616,8]
[394858876,1764024651811,-500.0,0.00035616,8]
[394858877,1764024651820,-287.24601883,0.00035616,8]
[394858878,1764024651830,-500.0,0.00035616,2]
[394858879,1764024651839,-500.0,0.00035616,8]
[394858880,1764024651848,-500.0,0.00035616,2]
[394858881,1764024651860,-500.0,0.00035616,8]
[394858882,1764024651870,-500.0,0.00035616,8]
[394858883,1764024651879,-500.0,0.00035616,8]
[394858884,1764024651888,-506.63660827,0.00035616,8]
[394858885,1764024651899,-500.0,0.00035616,8]
[394858886,1764024651909,-500.0,0.00035616,8]
[394858887,1764024651921,-640.20130346,0.00035616,8]
[394858888,1764024651931,-500.0,0.00035616,8]
[394858889,1764024651941,-500.0,0.00035616,8]
[394858890,1764024651950,-500.0,0.00035616,8]
[394858891,1764024651960,-500.0,0.00035616,8]
[394858892,1764024651970,-500.0,0.00035616,8]
[394858893,1764024651979,-500.0,0.00035616,8]
[394858894,1764024651989,-500.0,0.00035616,8]
[394858895,1764024651998,-500.0,0.00035616,8]
[394858896,1764024652007,-500.0,0.00035616,8]
[394858897,1764024652016,-500.0,0.00035616,8]
[394858898,1764024652025,-500.0,0.00035616,8]
[394858899,1764024652034,-500.0,0.00035616,8]
[394858900,1764024652043,-500.0,0.00035616,8]
[394858901,1764024652052,-500.0,0.00035616,8]
[394858902,1764024652061,-500.0,0.00035616,8]
[394858903,1764024652070,-500.0,0.00035616,8]
[394858904,1764024652079,-500.0,0.00035616,8]
[394858905,1764024652088,-500.0,0.00035616,8]
[394858906,1764024652098,-603.62614404,0.00035616,8]
[394858907,1764024652107,-500.0,0.00035616,8]
[394858908,1764024652116,-500.00000031,0.00035616,8]
[394858909,1764024652126,-500.0,0.00035616,8]
[394858910,1764024652135,-500.0,0.00035616,8]
[394858911,1764024652144,-500.0,0.00035616,8]
[394858912,1764024652153,-500.0,0.00035616,8]
[394858913,1764024652162,-500.0,0.00035616,8]
[394858914,1764024652171,-500.0,0.00035616,8]
[394858915,1764024652181,-507.28686113,0.00035616,8]
[394858916,1764024652190,-500.0,0.00035616,8]
[394858917,1764024652199,-500.0,0.00035616,8]
[394858918,1764024652208,-500.0,0.00035616,8]
[394858919,1764024652219,-594.82837803,0.00035616,8]
[394858920,1764024652228,-500.0,0.00035616,8]
[394858921,1764024652238,-500.0,0.00035616,8]
[394858922,1764024652247,-500.0,0.00035616,8]
[394858923,1764024652257,-500.0,0.00035616,8]
[394858924,1764024652266,-500.0,0.00035616,8]
[394858925,1764024652275,-500.0,0.00035616,8]
[394858926,1764024652285,-500.0,0.00035616,7]
[394858927,1764024652294,-502.51374396,0.00035616,8]
[394858928,1764024652303,-500.0,0.00035616,8]
[394858929,1764024652312,-500.0,0.00035616,8]
[394858930,1764024652321,-500.0,0.00035616,8]
[394858931,1764024652330,-500.0,0.00035616,8]
[394858932,1764024652339,-500.0,0.00035616,8]
[394858933,1764024652349,-500.0,0.00035616,8]
[394858934,1764024652359,-500.0,0.00035616,8]
[394858935,1764024652368,-151.0,0.00035616,31]
[394858936,1764024652377,-500.0,0.00035616,8]
[394858937,1764024652390,-501.53264806,0.00035616,8]
[394858938,1764024652404,-500.0,0.00035616,8]
[394858939,1764024652413,-500.0,0.00035616,8]
[394858940,1764024652423,-500.0,0.00035616,8]
[394858941,1764024652434,-500.0,0.00035616,8]
[394858942,1764024652443,-500.0,0.00035616,8]
[394858943,1764024652452,-500.0,0.00035616,8]
[394858944,1764024652462,-500.0,0.00035616,8]
[394858945,1764024652473,-506.33195404,0.00035616,8]
[394858946,1764024652482,-500.0,0.00035616,8]
[394858947,1764024652492,-500.0,0.00035616,8]
[394858948,1764024652501,-500.0,0.00035616,2]
[394858949,1764024652511,-500.0,0.00035616,8]
[394858950,1764024652521,-500.0,0.00035616,8]
[394858951,1764024652530,-510.16491401,0.00035616,8]
[394858952,1764024652540,-500.0,0.00035616,8]
[394858953,1764024652549,-500.0,0.00035616,8]
[394858954,1764024652559,-500.0,0.00035616,8]
[394858955,1764024652570,-503.273257,0.00035616,8]
[394858956,1764024652579,-500.0,0.00035616,8]
[394858957,1764024652589,-500.0,0.00035616,8]
[394858958,1764024652599,-500.0,0.00035616,8]
[394858959,1764024652609,-500.0,0.00035616,2]
[394858960,1764024652619,-500.0,0.00035616,8]
[394858961,1764024652628,-500.0,0.00035616,8]
[394858962,1764024652638,-500.0,0.00035616,8]
[394858963,1764024652650,-500.0,0.00035616,8]
[394858964,1764024652660,-500.0,0.00035616,8]
[394858965,1764024652670,-503.61,0.00035616,8]
[394858966,1764024652680,-503.53935878,0.00035616,8]
[394858967,1764024652689,-500.0,0.00035616,8]
[394858968,1764024652701,-500.0,0.00035616,8]
[394858969,1764024652711,-500.0,0.00035616,8]
[394858970,1764024652723,-500.0,0.00035616,8]
[394858971,1764024652733,-500.0,0.00035616,8]
[394858972,1764024652742,-156.476947,0.00035616,30]
[394858973,1764024652751,-500.0,0.00035616,8]
[394858974,1764024652761,-511.98663914,0.00035616,8]
[394858975,1764024652771,-500.0,0.00035616,8]
[394858976,1764024652780,-500.0,0.00035616,8]
[394858977,1764024652790,-500.0,0.00035616,8]
[394858978,1764024652800,-477.54696365,0.00035616,8]
[394858979,1764024652810,-500.0,0.00035616,8]
[394858980,1764024652820,-555.34922557,0.00035616,8]
[394858981,1764024652831,-500.0,0.00035616,8]
[394858982,1764024652840,-500.0,0.00035616,8]
[394858983,1764024652850,-500.0,0.00035616,8]
[394858984,1764024652859,-500.0,0.00035616,8]
[394858985,1764024652992,-500.0,0.00035616,8]
[394858986,1764024653009,-500.0,0.00035616,8]
[394858987,1764024653019,-500.0,0.00035616,8]
[394858988,1764024653029,-260.67536758,0.00035616,8]
[394858989,1764024653038,-500.0,0.00035616,8]
[394858990,1764024653048,-500.0,0.00035616,8]
[394858991,1764024653058,-500.0,0.00035616,8]
[394858992,1764024653068,-500.0,0.00035616,8]
[394858993,1764024653077,-500.0,0.00035616,8]
[394858994,1764024653087,-500.0,0.00035616,8]
[394858995,1764024653096,-500.0,0.00035616,8]
[394858996,1764024653106,-297.13581326,0.00035616,8]
[394858997,1764024653116,-500.0,0.00035616,8]
[394858998,1764024653125,-151.08268383,0.00035616,8]
[394858999,1764024653135,-151.0,0.00035616,31]
[394859000,1764024653144,-151.0,0.00035616,31]
[394859001,1764024653154,-500.0,0.00035616,8]
[394859002,1764024653163,-514.81,0.00035616,8]
[394859003,1764024653172,-500.0,0.00035616,8]
[394859004,1764024653182,-151.0,0.00035616,31]
[394859005,1764024653191,-521.66352156,0.00035616,8]
[394859006,1764024653200,-500.0,0.00035616,8]
[394859007,1764024653209,-567.41,0.00035616,8]
[394859008,1764024653220,-500.0,0.00035616,8]
[394859009,1764024653230,-500.0,0.00035616,8]
[394859010,1764024653239,-500.0,0.00035616,8]
[394859011,1764024653248,-500.0,0.00035616,8]
[394859012,1764024653264,-500.0,0.00035616,8]
[394859013,1764024653273,-500.0,0.00035616,10]
[394859014,1764024653282,-500.0,0.00035616,8]
[394859015,1764024653292,-501.95002403,0.00035616,8]
[394859016,1764024653301,-500.0,0.00035616,8]
[394859017,1764024653310,-500.0,0.00035616,8]
[394859018,1764024653319,-500.0,0.00035616,8]
[394859019,1764024653328,-500.0,0.00035616,8]
[394859020,1764024653337,-500.0,0.00035616,8]
[394859021,1764024653346,-500.0,0.00035616,8]
[394859022,1764024653355,-500.0,0.00035616,8]
[394859023,1764024653364,-500.0,0.00035616,8]
[394859024,1764024653373,-500.0,0.00035616,8]
[394859025,1764024653383,-506.71851384,0.00035616,8]
[394859026,1764024653392,-500.0,0.00035616,8]
[394859027,1764024653401,-500.0,0.00035616,8]
[394859028,1764024653410,-500.0,0.00035616,8]
[394859029,1764024653420,-500.0,0.00035616,8]
[394859030,1764024653429,-507.23698254,0.00035616,8]
[394859031,1764024653438,-506.5113702,0.00035616,8]
[394859032,1764024653447,-500.0,0.00035616,8]
[394859033,1764024653457,-547.03,0.00035616,8]
[394859034,1764024653468,-500.0,0.00035616,8]
[394859035,1764024653478,-581.91,0.00035616,8]
[394859036,1764024653487,-500.0,0.00035616,8]
[394859037,1764024653496,-500.0,0.00035616,8]
[394859038,1764024653506,-500.0,0.00035616,8]
[394859039,1764024653516,-500.0,0.00035616,8]
[394859040,1764024653526,-299.75222076,0.00035616,8]
[394859041,1764024653535,-238.03751069,0.00035616,8]
[394859042,1764024653544,-500.0,0.00035616,8]
[394859043,1764024653553,-500.0,0.00035616,8]
[394859044,1764024653563,-500.0,0.00035616,8]
[394859045,1764024653572,-500.0,0.00035616,8]
[394859046,1764024653581,-500.0,0.00035616,8]
[394859047,1764024653590,-500.0,0.00035616,8]
[394859048,1764024653599,-500.0,0.00035616,8]
[394859049,1764024653609,-500.0,0.00035616,8]
[394859050,1764024653618,-500.0,0.00035616,8]
[394859051,1764024653627,-500.0,0.00035616,8]
[394859052,1764024653637,-500.0,0.00035616,8]
[394859053,1764024653647,-500.0,0.00035616,8]
[394859054,1764024653659,-500.0,0.00035616,8]
[394859055,1764024653668,-500.0,0.00035616,8]
[394859056,1764024653677,-500.0,0.00035616,8]
[394859057,1764024653687,-502.99228611,0.00035616,8]
[394859058,1764024653697,-500.0,0.00035616,8]
[394859059,1764024653707,-500.0,0.00035616,8]
[394859060,1764024653717,-151.0,0.00035616,14]
[394859061,1764024653728,-500.0,0.00035616,8]
[394859062,1764024653737,-151.0,0.00035616,14]
[394859063,1764024653747,-500.0,0.00035616,8]
[394859064,1764024653756,-151.0,0.00035616,14]
[394859065,1764024653765,-251.91117321,0.00035616,8]
[394859066,1764024653775,-500.0,0.00035616,8]
[394859067,1764024653784,-151.0,0.00035616,10]
[394859068,1764024653793,-500.0,0.00035616,8]
[394859069,1764024653802,-500.0,0.00035616,8]
[394859070,1764024653812,-553.77,0.00035616,8]
[394859071,1764024653821,-541.37437072,0.00035616,8]
[394859072,1764024653830,-629.66,0.00035616,8]
[394859073,1764024653839,-506.21,0.00035616,8]
[394859074,1764024653849,-501.76950242,0.00035616,8]
[394859075,1764024653858,-500.0,0.00035616,8]
[394859076,1764024653868,-500.0,0.00035616,8]
[394859077,1764024653878,-500.0,0.00035616,8]
[394859078,1764024653887,-500.0,0.00035616,8]
[394859079,1764024653896,-500.0,0.00035616,8]
[394859080,1764024653905,-500.0,0.00035616,8]
[394859081,1764024653915,-500.0,0.00035616,8]
[394859082,1764024653924,-500.0,0.00035616,8]
[394859083,1764024653933,-500.0,0.00035616,8]
[394859084,1764024653943,-500.0,0.00035616,8]
[394859085,1764024653952,-500.0,0.00035616,8]
[394859086,1764024653961,-500.0,0.00035616,8]
[394859087,1764024653971,-500.0,0.00035616,8]
[394859088,1764024653981,-500.0,0.00035616,8]
[394859089,1764024653996,-500.0,0.00035616,8]